bitfinex/quotes_SOLUSD_20251009
["timestamp","ask_amount","ask_price","bid_price","bid_amount"]
[1760033039772,15.96861026,219.18,219.11,10.87647521]
[1760033040707,0.67,219.17,219.12,33.28]
[1760033040869,15.97079625,219.15,219.12,33.28]
[1760033041496,0.67,219.14,219.08,20.8]
[1760033041667,15.97079625,219.15,218.98,230.54334976]
[1760033041668,0.67,219.13,218.98,230.54334976]
[1760033041991,0.67,219.12,218.99,44.17647521]
[1760033042195,0.67,219.11,219.03,10.87647521]
[1760033042492,0.67,219.11,219.04,33.3]
[1760033042897,38.78621947,219.15,219.05,10.87647521]
[1760033042898,0.68,219.14,219.05,10.87647521]
[1760033043273,0.68,219.13,219.05,10.87647521]
[1760033043690,34.22313483,219.15,219.05,10.87647521]
[1760033043988,15.97371182,219.11,219.05,10.87647521]
[1760033044173,15.97371182,219.11,219.02,20.8]
[1760033044372,0.68,219.1,219.03,33.28]
[1760033044628,0.68,219.09,219.03,33.28]
[1760033044898,16.65371182,219.11,219.03,33.28]
[1760033046920,16.65371182,219.11,219.01,10.87647521]
[1760033046921,0.68,219.1,219.01,10.87647521]
[1760033047222,0.68,219.09,219.02,33.26]
[1760033047514,0.68,219.08,219.02,33.26]
[1760033047716,0.68,219.07,219.02,80.3]
[1760033048009,0.68,219.06,219.02,80.3]
[1760033048894,15.97808718,219.05,219.02,80.3]
[1760033049297,16.65808718,219.05,219.02,80.3]
[1760033050206,0.68,219.04,218.98,80.3]
[1760033050412,0.68,219.04,218.99,33.22]
[1760033050595,0.68,219.03,218.98,80.3]
[1760033050790,0.68,219.02,218.98,80.3]
[1760033051003,0.68,219.01,218.98,80.3]
[1760033051200,0.68,219.0,218.98,80.3]
[1760033051608,11.41291942,219.05,218.98,10.87647521]
[1760033053095,4.56475099,219.07,218.98,10.87647521]
[1760033053293,4.56475099,219.07,218.98,222.07647521]
[1760033053494,15.97662847,219.07,218.98,222.07647521]
[1760033053698,15.97662847,219.07,218.98,226.64307419]
[1760033054322,15.97662847,219.07,218.98,222.07647521]
[1760033054615,0.68,219.06,218.98,222.07647521]
[1760033054821,0.68,219.05,218.99,33.24]
[1760033054998,15.97954617,219.03,218.95,80.3]
[1760033055200,0.68,219.02,218.96,33.24]
[1760033055411,0.68,219.02,218.96,113.54]
[1760033057103,15.98100543,219.01,218.96,113.54]
[1760033057725,16.66100543,219.01,218.96,113.54]
[1760033058536,0.68,219.0,218.97,33.26]
[1760033058822,4.56600155,219.01,218.97,33.26]
[1760033059302,4.56516776,219.05,218.98,10.87647521]
[1760033059731,15.97808718,219.05,218.98,10.87647521]
[1760033060018,16.65808718,219.05,218.98,80.3]
[1760033060228,16.65808718,219.05,218.98,113.54]
[1760033060638,4.56516776,219.05,218.99,10.87647521]
[1760033060817,4.56454263,219.08,218.99,10.87647521]
[1760033061011,15.97589921,219.08,218.99,10.87647521]
[1760033062429,11.41135658,219.08,218.99,15.44283398]
[1760033063021,11.41135658,219.08,219.01,10.87647521]
[1760033063411,11.41135658,219.08,219.02,33.3]
[1760033064013,4.56433429,219.09,219.03,10.87647521]
[1760033064219,4.56433429,219.09,219.03,91.17647521]
[1760033065335,15.97517001,219.09,219.03,91.17647521]
[1760033065544,11.41083572,219.09,219.05,10.87647521]
[1760033065716,4.56391766,219.11,219.05,10.87647521]
[1760033066608,4.56329287,219.14,219.05,15.44157918]
[1760033066830,4.56329287,219.14,219.08,20.8]
[1760033067038,4.56329287,219.14,219.1,10.87647521]
[1760033067242,0.2,219.2,219.13,20.8]
[1760033067532,4.76209059,219.2,219.14,10.87647521]
[1760033067735,4.76209059,219.2,219.15,33.32]
[1760033068709,4.76209059,219.2,219.14,10.87647521]
[1760033068930,16.16720007,219.2,219.15,44.17647521]
[1760033069137,4.76209059,219.2,219.15,44.17647521]
[1760033071834,0.68,219.19,219.15,44.17647521]
[1760033072137,0.68,219.18,219.16,33.28]
[1760033072347,16.16720007,219.2,219.16,33.28]
[1760033072548,0.68,219.19,219.16,33.28]
[1760033072922,16.16720007,219.2,219.16,33.28]
[1760033073224,5.47209059,219.2,219.16,33.28]
[1760033074241,4.76209059,219.2,219.16,33.28]
[1760033078052,4.76209059,219.2,219.16,244.48]
[1760033078252,11.40478884,219.21,219.16,244.48]
[1760033078429,12.11478884,219.21,219.16,244.48]
[1760033078952,12.11478884,219.21,219.16,113.58]
[1760033079747,11.40478884,219.21,219.16,113.58]
[1760033079967,0.71,219.2,219.16,113.58]
[1760033080553,0.71,219.2,219.17,33.16]
[1760033081049,15.96662452,219.21,219.18,33.16]
[1760033081248,15.96662452,219.21,219.19,33.16]
[1760033081457,0.71,219.2,219.18,80.3]
[1760033081837,15.96662452,219.21,219.15,10.87647521]
[1760033081838,4.56183568,219.21,219.19,33.14]
[1760033083126,15.96642488,219.21,219.2,33.14]
[1760033084163,4.56183568,219.21,219.2,33.14]
[1760033084828,0.2,219.22,219.2,44.01647521]
[1760033085028,4.76164146,219.22,219.2,44.01647521]
[1760033089758,0.72,219.24,219.22,75.53835854]
[1760033090063,0.72,219.24,219.23,33.14]
[1760033090352,0.72,219.24,219.23,108.67835854]
[1760033090854,5.28121145,219.24,219.23,108.67835854]
[1760033091766,5.28121145,219.24,219.14,20.8]
[1760033091767,16.68424009,219.24,219.17,10.87647521]
[1760033091968,0.72,219.23,219.18,33.14]
[1760033092182,0.72,219.22,219.18,33.14]
[1760033093232,4.56121145,219.24,219.19,10.87647521]
[1760033093462,4.56121145,219.24,219.2,33.14]
[1760033093845,11.40302864,219.24,219.2,33.14]
[1760033094670,0.72,219.23,219.2,33.14]
[1760033094963,0.72,219.23,219.17,10.87647521]
[1760033095166,11.40302864,219.24,219.18,33.14]
[1760033095465,0.72,219.22,219.18,33.14]
[1760033095961,4.56183568,219.21,219.19,10.87647521]
[1760033096166,4.56183568,219.21,219.2,33.14]
[1760033096772,4.56147524,219.23,219.2,33.14]
[1760033096948,0.72,219.21,219.02,5.66503068]
[1760033097148,21.52,219.2,219.07,11.40302864]
[1760033097362,0.72,219.19,219.08,20.14]
[1760033097669,0.72,219.18,219.08,20.14]
[1760033097846,0.72,219.18,218.99,0.1]
[1760033097847,0.72,219.17,218.99,0.1]
[1760033098048,0.72,219.17,219.01,13.7014455]
[1760033098261,0.72,219.16,219.02,10.87647521]
[1760033098465,0.72,219.15,219.06,31.67647521]
[1760033098858,0.72,219.14,219.07,33.14]
[1760033099755,15.9722539,219.13,219.07,33.14]
[1760033100283,0.72,219.12,219.08,33.14]
[1760033100453,0.72,219.11,219.08,33.14]
[1760033101270,0.72,219.1,218.99,17.49153505]
[1760033101476,0.72,219.1,219.0,44.01647521]
[1760033101775,16.69517001,219.09,219.04,10.87647521]
[1760033102071,5.28433429,219.09,219.05,33.14]
[1760033102275,0.72,219.08,219.05,33.14]
[1760033102779,0.66,219.07,218.99,20.9]
[1760033102976,0.66,219.07,219.0,10.87647521]
[1760033103162,0.66,219.06,219.01,33.14]
[1760033103361,0.66,219.05,219.01,33.14]
[1760033103563,0.66,219.04,219.01,33.14]
[1760033103884,11.40961175,219.12,219.01,33.14]
[1760033104383,0.66,219.11,219.01,33.14]
[1760033104552,0.66,219.1,219.01,33.14]
[1760033104753,3.05554381,219.13,219.05,10.87647521]
[1760033104963,5.22329287,219.14,219.06,33.14]
[1760033105476,5.22329287,219.14,219.07,10.87647521]
[1760033106067,16.63152505,219.14,219.07,10.87647521]
[1760033106881,0.66,219.13,219.02,20.8]
[1760033107186,0.66,219.12,219.04,33.14]
[1760033107370,0.66,219.11,219.04,33.14]
[1760033107749,0.66,219.1,219.05,33.14]
[1760033108061,15.97589921,219.08,219.05,33.14]
[1760033108370,16.63589921,219.08,219.05,33.14]
[1760033109863,0.66,219.07,219.05,33.14]
[1760033110058,0.66,219.07,219.04,33.14]
[1760033110665,0.66,219.06,219.0,10.87647521]
[1760033110866,0.66,219.06,219.01,33.14]
[1760033111185,0.66,219.05,219.01,33.14]
[1760033111385,4.56537618,219.04,219.01,33.14]
[1760033111987,4.56412596,219.1,219.02,10.87647521]
[1760033112654,15.97444088,219.1,219.02,10.87647521]
[1760033112860,15.97444088,219.1,219.03,33.14]
[1760033115563,0.66,219.09,219.02,10.87647521]
[1760033115762,0.66,219.09,219.03,33.14]
[1760033116466,4.56412596,219.1,219.04,10.87647521]
[1760033116689,4.56370938,219.12,219.04,10.87647521]
[1760033116891,4.56308464,219.15,219.08,10.87647521]
[1760033117107,4.56246007,219.18,219.1,10.87647521]
[1760033117267,3.71279641,219.23,219.14,10.87647521]
[1760033117596,0.66,219.23,219.15,33.14]
[1760033117785,12.06354878,219.23,219.15,33.14]
[1760033119294,16.62496829,219.23,219.15,33.14]
[1760033119474,15.96496829,219.23,219.16,10.87647521]
[1760033120981,11.40354878,219.23,219.16,10.87647521]
[1760033121193,0.66,219.22,219.17,33.14]
[1760033121373,0.66,219.21,219.18,33.14]
[1760033121686,0.66,219.2,219.18,33.14]
[1760033122100,0.66,219.19,219.18,33.14]
[1760033122407,0.66,219.19,219.17,33.14]
[1760033122774,0.66,219.21,219.17,33.14]
[1760033123096,4.56204379,219.2,219.17,33.14]
[1760033123595,4.56162758,219.22,219.17,33.14]
[1760033124697,11.40354878,219.23,219.17,33.14]
[1760033124875,11.40354878,219.23,219.18,10.87647521]
[1760033125275,4.56121145,219.24,219.18,10.87647521]
[1760033125697,15.96424009,219.24,219.18,10.87647521]
[1760033126897,4.5607954,219.26,219.21,20.8]
[1760033127069,4.5607954,219.26,219.22,33.14]
[1760033127274,0.66,219.31,219.22,33.14]
[1760033127582,3.71035018,219.31,219.22,33.14]
[1760033128194,11.40042865,219.29,219.22,33.14]
[1760033129386,11.40042865,219.29,219.23,10.87647521]
[1760033130379,0.66,219.28,219.2,20.8]
[1760033130590,0.66,219.27,219.21,33.12]
[1760033130782,0.66,219.26,219.21,33.12]
[1760033130991,0.66,219.25,219.18,20.8]
[1760033131299,0.66,219.24,219.19,33.12]
[1760033131594,0.66,219.3,219.2,10.87647521]
[1760033131778,3.04931726,219.31,219.2,10.87647521]
[1760033132179,0.66,219.3,219.2,10.87647521]
[1760033132379,15.96132797,219.28,219.21,33.12]
[1760033132589,0.66,219.27,219.21,33.12]
[1760033133281,0.69,219.26,219.07,10.87647521]
[1760033133493,3.0489595,219.27,219.09,10.87647521]
[1760033133494,21.49,219.25,219.09,10.87647521]
[1760033133691,3.7389595,219.24,219.12,20.8]
[1760033133895,0.69,219.23,219.13,43.99647521]
[1760033134075,0.69,219.22,219.14,33.12]
[1760033134287,0.69,219.21,219.14,33.12]
[1760033134489,15.96715327,219.2,219.14,33.12]
[1760033134885,4.56204379,219.2,219.15,10.87647521]
[1760033136977,15.9653425,219.23,219.15,10.87647521]
[1760033137396,0.69,219.22,219.15,10.87647521]
[1760033137605,0.69,219.22,219.12,20.8]
[1760033137606,0.69,219.21,219.16,33.12]
[1760033137983,0.69,219.2,219.16,33.12]
[1760033138386,15.9653425,219.23,219.16,33.12]
[1760033139596,0.69,219.22,219.16,33.12]
[1760033140023,3.05068934,219.26,219.17,10.87647521]
[1760033140505,0.69,219.25,219.18,33.12]
[1760033140683,0.69,219.24,219.17,33.12]
[1760033140885,0.69,219.23,219.17,33.12]
[1760033141102,0.69,219.22,219.17,33.12]
[1760033141316,3.74068934,219.26,219.17,33.12]
[1760033141488,15.96351197,219.25,219.18,10.87647521]
[1760033141693,4.56100342,219.25,219.21,20.8]
[1760033141903,4.56100342,219.25,219.22,43.99647521]
[1760033142991,11.40133533,219.28,219.22,10.87647521]
[1760033143193,0.69,219.27,219.22,33.12]
[1760033143380,0.69,219.27,219.17,10.87647521]
[1760033143381,0.69,219.26,219.17,10.87647521]
[1760033143581,0.69,219.25,219.18,33.12]
[1760033143885,0.69,219.24,219.09,11.41045907]
[1760033144087,0.69,219.23,219.11,43.99647521]
[1760033144287,0.69,219.23,219.14,20.8]
[1760033144581,0.69,219.22,219.15,43.99647521]
[1760033145098,4.56183568,219.21,219.15,43.99647521]
[1760033146022,4.56183568,219.21,219.14,10.87647521]
[1760033146310,15.96642488,219.21,219.15,33.12]
[1760033147086,11.4045892,219.21,219.15,33.12]
[1760033148817,4.56162758,219.22,219.16,10.87647521]
[1760033149107,11.40212243,219.26,219.16,31.67647521]
[1760033149289,11.40212243,219.26,219.16,36.23933915]
[1760033149601,12.08212243,219.26,219.16,36.23933915]
[1760033149808,11.40212243,219.26,219.16,36.23933915]
[1760033150193,16.6420559,219.27,219.16,36.23933915]
[1760033152212,0.68,219.26,219.17,33.12]
[1760033152414,0.68,219.26,219.18,33.12]
[1760033152605,0.68,219.26,219.19,10.87647521]
[1760033153415,15.96351197,219.25,219.19,10.87647521]
[1760033157522,0.68,219.24,219.2,33.12]
[1760033157716,0.68,219.23,219.17,10.87647521]
[1760033157908,16.64569655,219.22,219.18,33.12]
[1760033158407,15.96569655,219.22,219.1,224.65710893]
[1760033158615,0.68,219.21,219.15,31.67647521]
[1760033158932,0.68,219.21,219.16,33.1]
[1760033159317,15.96569655,219.22,219.16,33.1]
[1760033159513,16.64569655,219.22,219.16,33.1]
[1760033159700,15.96569655,219.22,219.16,33.1]
[1760033159900,15.96715327,219.2,219.17,33.1]
[1760033160102,16.64715327,219.2,219.17,33.1]
[1760033160401,0.68,219.19,219.17,33.1]
[1760033161127,4.56204379,219.2,219.17,33.1]
[1760033161421,3.06883469,219.19,219.17,33.1]
[1760033161601,5.24204379,219.2,219.17,33.1]
[1760033161800,5.24204379,219.2,219.13,10.87647521]
[1760033162001,3.0688269,219.19,219.15,10.87647521]
[1760033162198,16.64715327,219.2,219.11,10.87647521]
[1760033162199,3.74930181,219.18,219.11,10.87647521]
[1760033162514,3.74965028,219.17,219.11,33.1]
[1760033162822,3.76965028,219.16,219.11,33.1]
[1760033163011,3.76965028,219.15,219.11,244.3]
[1760033163211,0.7,219.15,219.11,244.3]
[1760033164018,0.7,219.19,219.11,244.3]
[1760033164218,3.76878025,219.18,219.11,244.3]
[1760033164419,3.76878025,219.17,219.11,244.3]
[1760033164613,3.06878025,219.16,219.11,244.3]
[1760033164813,0.7,219.16,219.11,244.3]
[1760033165416,3.06749353,219.18,219.12,10.87647521]
[1760033165620,3.0666863,219.22,219.15,10.87647521]
[1760033165919,4.56121145,219.24,219.17,10.87647521]
[1760033166105,3.06679322,219.23,219.17,10.87647521]
[1760033166304,3.06679322,219.22,219.17,10.87647521]
[1760033166613,4.56121145,219.24,219.17,10.87647521]
[1760033166818,19.03214924,219.23,219.17,10.87647521]
[1760033167017,3.06679461,219.22,219.17,10.87647521]
[1760033167205,15.96535463,219.23,219.17,10.87647521]
[1760033167406,3.0667009,219.22,219.17,10.87647521]
[1760033167613,0.7,219.21,219.15,80.3]
[1760033167829,3.76685828,219.2,219.16,33.1]
[1760033168031,3.76685828,219.19,219.16,33.1]
[1760033168326,0.7,219.18,219.15,113.4]
[1760033168517,0.7,219.17,219.15,113.4]
[1760033168725,42.59562586,219.23,219.15,113.4]
[1760033168726,15.96788173,219.19,219.15,33.1]
[1760033168910,3.76713527,219.18,219.15,33.1]
[1760033169309,3.06713527,219.18,219.12,91.17647521]
[1760033169509,3.76713527,219.17,219.13,33.1]
[1760033169706,3.76708462,219.16,219.13,33.1]
[1760033169915,0.7,219.15,219.13,33.1]
[1760033170630,3.76708462,219.14,218.97,22.06438471]
[1760033170923,15.97298283,219.12,218.99,250.5504831]
[1760033171116,3.76708462,219.11,218.99,35.66]
[1760033171317,0.7,219.11,219.03,20.8]
[1760033171516,0.7,219.1,219.04,33.1]
[1760033171718,0.7,219.1,219.04,113.4]
[1760033173025,15.97517001,219.09,219.04,113.4]
[1760033173530,0.7,219.08,219.04,113.4]
[1760033174516,4.56433429,219.09,219.04,113.4]
[1760033174718,5.26433429,219.09,219.04,113.4]
[1760033175111,0.7,219.08,219.04,80.3]
[1760033175318,0.7,219.07,219.05,33.1]
[1760033175533,4.56433429,219.09,219.05,33.1]
[1760033175741,0.7,219.08,219.04,80.3]
[1760033175951,0.7,219.07,219.04,80.3]
[1760033176146,15.97517001,219.09,219.03,33.1]
[1760033176147,0.7,219.06,219.03,80.3]
[1760033176312,0.7,219.05,219.03,80.3]
[1760033176516,0.7,219.04,219.0,113.4]
[1760033176828,0.7,219.03,219.0,113.4]
[1760033177028,18.86012146,219.09,219.0,113.4]
[1760033177029,0.7,219.02,219.0,113.4]
[1760033177231,0.7,219.04,219.0,113.4]
[1760033177426,0.7,219.03,219.0,80.3]
[1760033177622,0.7,219.02,219.0,80.3]
[1760033177940,0.7,219.01,218.99,0.1]
[1760033178325,0.7,219.0,218.99,0.1]
[1760033179134,5.26621004,219.0,218.99,0.1]
[1760033179641,0.7,219.0,218.99,0.1]
[1760033179827,5.26621004,219.0,218.99,0.1]
[1760033184137,4.56621004,219.0,218.99,0.1]
[1760033184850,5.26621004,219.0,218.99,0.1]
[1760033190628,11.41424582,219.03,218.99,0.1]
[1760033190954,0.7,219.02,218.99,0.1]
[1760033191247,0.7,219.01,218.99,0.1]
[1760033191641,0.7,219.0,218.99,0.1]
[1760033192547,5.26621004,219.0,218.99,0.1]
[1760033194948,39.51278537,219.0,218.93,0.1]
[1760033195647,20.8,218.97,218.93,1e-08]
[1760033195965,20.8,218.95,218.93,1e-08]
[1760033196138,20.8,218.95,218.89,1e-08]
[1760033196456,0.67,218.94,218.89,1e-08]
[1760033196658,20.8,218.91,218.89,1e-08]
[1760033196830,36.7868451,218.93,218.89,1e-08]
[1760033197030,0.67,218.9,218.89,1e-08]
[1760033197259,21.47,218.9,218.89,1e-08]
[1760033197462,20.8,218.89,218.72,18.60019814]
[1760033197728,20.8,218.89,218.77,28.04]
[1760033197932,0.67,218.88,218.77,0.1]
[1760033199058,59.63583861,218.87,218.77,0.1]
[1760033199256,0.67,218.86,218.77,0.1]
[1760033200760,15.99268905,218.85,218.77,0.1]
[1760033200963,0.67,218.84,218.77,0.1]
[1760033201639,20.8,218.82,218.77,0.1]
[1760033201835,0.67,218.81,218.77,0.1]
[1760033203055,15.99634369,218.8,218.77,0.1]
[1760033203271,0.67,218.79,218.77,0.1]
[1760033203436,15.99634369,218.8,218.77,0.1]
[1760033203639,0.67,218.79,218.77,0.1]
[1760033203851,0.67,218.78,218.77,0.1]
[1760033205058,5.24080171,218.78,218.77,0.1]
[1760033205283,5.24080171,218.78,218.68,20.9]
[1760033205284,16.667806,218.78,218.68,0.1]
[1760033205763,20.8,218.75,218.68,0.1]
[1760033206247,0.68,218.74,218.68,0.1]
[1760033207249,16.00146298,218.73,218.68,0.1]
[1760033207449,0.68,218.72,218.68,0.1]
[1760033207965,16.00146298,218.73,218.68,0.1]
[1760033208182,16.68146298,218.73,218.68,0.1]
[1760033208349,16.00146298,218.73,218.68,0.1]
[1760033208753,0.68,218.77,218.68,0.1]
[1760033209281,4.5712196,218.76,218.68,0.1]
[1760033209452,5.2512196,218.76,218.68,0.1]
[1760033210260,16.6792686,218.76,218.68,0.1]
[1760033212466,16.6792686,218.76,218.7,10.87647521]
[1760033212467,4.5712196,218.76,218.7,10.87647521]
[1760033213169,4.57080171,218.78,218.7,10.87647521]
[1760033213377,4.57017503,218.81,218.74,10.87647521]
[1760033213980,4.57017503,218.81,218.72,33.1]
[1760033213981,0.68,218.8,218.72,33.1]
[1760033214362,15.997806,218.78,218.72,33.1]
[1760033214566,0.68,218.77,218.69,10.87647521]
[1760033214877,0.68,218.76,218.69,10.87647521]
[1760033215104,0.68,218.76,218.68,54.0]
[1760033215105,0.68,218.75,218.68,0.1]
[1760033215858,21.48,218.75,218.68,0.1]
[1760033216388,4.57163756,218.74,218.68,0.1]
[1760033216574,4.57163756,218.74,218.69,10.87647521]
[1760033217569,0.68,218.77,218.69,10.87647521]
[1760033218790,15.9992686,218.76,218.69,10.87647521]
[1760033218993,0.68,218.75,218.68,20.9]
[1760033219182,20.8,218.73,218.68,0.1]
[1760033219689,0.68,218.72,218.68,0.1]
[1760033220277,37.4792686,218.76,218.68,0.1]
[1760033220462,4.5712196,218.76,218.69,10.87647521]
[1760033220669,4.57080171,218.78,218.69,10.87647521]
[1760033220887,16.677806,218.78,218.69,15.44914489]
[1760033222291,0.68,218.77,218.68,20.9]
[1760033222469,0.68,218.76,218.68,0.1]
[1760033222798,15.99999999,218.75,218.68,0.1]
[1760033222979,0.67,218.74,218.68,0.1]
[1760033223289,3.70474743,218.74,218.68,0.1]
[1760033223581,3.70474743,218.74,218.6,0.1]
[1760033223582,20.8,218.72,218.6,0.1]
[1760033223808,3.70474743,218.71,218.6,0.1]
[1760033224384,3.03474743,218.7,218.6,0.1]
[1760033224695,38.86958111,218.68,218.6,80.4]
[1760033224883,3.70474743,218.67,218.6,80.4]
[1760033225201,0.67,218.66,218.6,80.4]
[1760033225365,0.67,218.65,218.6,80.4]
[1760033225569,0.67,218.64,218.6,80.4]
[1760033225800,0.67,218.63,218.6,80.4]
[1760033226269,0.67,218.62,218.6,0.1]
[1760033226790,4.57435615,218.61,218.6,0.1]
[1760033228267,0.67,218.62,218.6,0.1]
[1760033228473,5.24424424,218.62,218.6,0.1]
[1760033228883,0.67,218.61,218.6,0.1]
[1760033229284,0.67,218.65,218.6,0.1]
[1760033229467,0.67,218.64,218.6,0.1]
[1760033229671,0.67,218.63,218.6,0.1]
[1760033230068,5.24414692,218.62,218.6,0.1]
[1760033230799,4.57414692,218.62,218.6,0.1]
[1760033231001,0.67,218.61,218.6,0.1]
[1760033231996,5.24435615,218.61,218.6,0.1]
[1760033232607,4.57435615,218.61,218.6,0.1]
[1760033232800,0.67,218.67,218.6,0.1]
[1760033232976,3.7024986,218.67,218.6,80.4]
[1760033233177,0.67,218.66,218.6,80.4]
[1760033234482,4.57351932,218.65,218.6,80.4]
[1760033234690,0.67,218.64,218.6,80.4]
[1760033234898,0.67,218.63,218.6,80.4]
[1760033235583,4.57351932,218.65,218.6,80.4]
[1760033235780,4.57310101,218.67,218.61,10.87647521]
[1760033235997,26.68010722,218.76,218.61,242.87647521]
[1760033235998,11.42977459,218.73,218.61,242.87647521]
[1760033236304,12.09977459,218.73,218.65,10.87647521]
[1760033236600,16.67162115,218.73,218.66,33.1]
[1760033236803,0.67,218.72,218.66,113.4]
[1760033237012,0.67,218.72,218.66,33.1]
[1760033237317,4.57184656,218.73,218.67,10.87647521]
[1760033237633,0.67,218.74,218.67,10.87647521]
[1760033237985,0.67,218.73,218.62,20.8]
[1760033238217,0.67,218.72,218.52,25.6417611]
[1760033238395,20.8,218.68,218.56,10.87647521]
[1760033238597,0.67,218.67,218.6,33.2]
[1760033238799,0.67,218.66,218.6,33.2]
[1760033238996,3.04372424,218.71,218.64,20.8]
[1760033239206,11.43013899,218.72,218.65,33.1]
[1760033239508,4.57184656,218.73,218.66,10.87647521]
[1760033239706,3.04788469,218.74,218.66,10.87647521]
[1760033239909,4.57169457,218.74,218.66,10.87647521]
[1760033240497,4.57169457,218.74,218.66,15.44977387]
[1760033242511,16.00078847,218.74,218.64,20.8]
[1760033242716,0.67,218.8,218.69,10.87647521]
[1760033242901,3.05543403,218.79,218.71,10.87647521]
[1760033243208,15.24735398,218.84,218.71,10.87647521]
[1760033243209,7.6252555,218.83,218.71,10.87647521]
[1760033243414,3.05543403,218.82,218.71,10.87647521]
[1760033243582,3.05543403,218.81,218.71,10.87647521]
[1760033243784,3.05543403,218.82,218.71,10.87647521]
[1760033244115,3.05543403,218.81,218.71,10.87647521]
[1760033244286,3.05543403,218.81,218.68,20.8]
[1760033244287,3.05543403,218.81,218.73,10.87647521]
[1760033244492,4.5705928,218.79,218.73,10.87647521]
[1760033244894,4.5705928,218.79,218.71,25.37219765]
[1760033245084,4.5705928,218.79,218.66,11.43278162]
[1760033245085,3.72543403,218.78,218.72,33.08]
[1760033245287,3.72543403,218.77,218.69,33.08]
[1760033245512,3.05543403,218.76,218.69,33.08]
[1760033246414,4.57142857,218.75,218.69,33.08]
[1760033246617,3.05543403,218.76,218.7,10.87647521]
[1760033246925,4.5711647,218.77,218.7,10.87647521]
[1760033247912,7.62621468,218.79,218.74,10.87647521]
[1760033248219,7.62621468,218.79,218.75,33.08]
[1760033248386,4.57078065,218.79,218.75,33.08]
[1760033248819,4.57078065,218.79,218.72,10.87647521]
[1760033249021,0.67,218.78,218.73,33.08]
[1760033249199,4.57078065,218.79,218.73,33.08]
[1760033249401,4.57078065,218.79,218.74,10.87647521]
[1760033250205,4.57038391,218.8,218.74,10.87647521]
[1760033251617,16.66634369,218.8,218.74,10.87647521]
[1760033252829,0.72,218.79,218.69,4.57262172]
[1760033253007,3.05669605,218.79,218.7,33.06]
[1760033253214,0.72,218.78,218.71,10.87647521]
[1760033253413,0.72,218.77,218.61,11.43550454]
[1760033253720,0.72,218.76,218.62,48.51062213]
[1760033253899,0.72,218.75,218.66,10.87647521]
[1760033254100,0.72,218.74,218.68,10.87647521]
[1760033254323,0.72,218.73,218.67,33.06]
[1760033254518,0.72,218.73,218.65,10.87647521]
[1760033254519,3.05637417,218.77,218.65,31.67647521]
[1760033254707,3.05637417,218.77,218.6,11.53619259]
[1760033254708,0.72,218.72,218.63,10.87647521]
[1760033254911,0.72,218.71,218.6,0.1]
[1760033255124,0.72,218.71,218.62,10.87647521]
[1760033255429,0.72,218.7,218.62,10.87647521]
[1760033255735,0.72,218.69,218.6,0.1]
[1760033255902,0.72,218.69,218.61,33.06]
[1760033256101,0.72,218.68,218.61,33.06]
[1760033256295,20.8,218.71,218.61,33.06]
[1760033256296,0.72,218.67,218.61,33.06]
[1760033256814,0.72,218.7,218.62,10.87647521]
[1760033257411,20.8,218.72,218.62,10.87647521]
[1760033257622,16.00512163,218.68,218.62,10.87647521]
[1760033258200,0.72,218.67,218.62,33.06]